bitfinex/quotes_ETHUSD_20260130
["timestamp","ask_amount","ask_price","bid_price","bid_amount"]
[1769810557460,13.32738455,2706.1,2705.1,0.01480796]
[1769810557657,13.32738455,2706.0,2705.1,0.93898464]
[1769810558564,13.32738455,2705.8,2705.2,0.92414236]
[1769810559089,13.32738455,2705.5,2704.9,0.0011]
[1769810559361,13.32738455,2705.5,2704.6,0.01270795]
[1769810559671,13.32738455,2705.3,2704.6,0.93705446]
[1769810560249,13.32738455,2705.3,2704.7,0.92429092]
[1769810562443,13.32738455,2705.3,2705.0,0.0011]
[1769810563766,14.25150201,2705.3,2704.3,0.92443124]
[1769810564077,14.25150201,2705.3,2704.2,3.69790002]
[1769810564078,14.25150201,2705.3,2704.4,0.92441557]
[1769810564270,13.32738455,2705.2,2704.4,0.92441557]
[1769810564463,13.32738455,2705.0,2704.4,0.92441557]
[1769810565451,13.32738455,2705.0,2704.3,0.92443398]
[1769810566279,13.32738455,2705.0,2704.1,0.92452202]
[1769810566979,14.25160052,2705.0,2704.0,0.93835244]
[1769810567277,13.32738455,2704.9,2704.0,1.35552576]
[1769810568775,14.25163672,2704.9,2704.0,1.35552576]
[1769810569447,13.32738455,2704.9,2704.0,1.35552576]
[1769810570778,14.25163634,2704.9,2704.0,1.35552576]
[1769810570953,13.32738455,2704.9,2704.0,1.35552576]
[1769810571159,13.32738455,2704.9,2704.1,14.57682059]
[1769810572051,13.32738455,2704.9,2704.1,1.78459845]
[1769810572250,13.32738455,2704.9,2704.0,1.35552576]
[1769810573286,14.2516374,2704.9,2704.0,1.35552576]
[1769810574685,14.2516374,2704.9,2704.2,0.0011]
[1769810578199,13.32738455,2704.7,2703.8,0.0011]
[1769810579379,13.32738455,2704.7,2703.8,0.925722]
[1769810580957,13.32738455,2704.5,2703.8,0.0011]
[1769810581197,0.9243511,2704.6,2703.8,0.0011]
[1769810581198,13.32738455,2704.3,2703.8,0.0011]
[1769810584502,13.32738455,2704.1,2703.6,0.79147401]
[1769810584659,13.32738455,2704.1,2703.0,0.92597473]
[1769810584983,13.32738455,2703.8,2702.6,0.0011]
[1769810585298,13.32738455,2703.6,2702.6,0.0011]
[1769810586103,13.32738455,2702.7,2701.5,12.79222214]
[1769810586270,13.32738455,2702.3,2701.4,0.0011]
[1769810586466,0.92524056,2702.0,2701.4,0.0011]
[1769810586694,14.51102543,2702.0,2701.4,0.0011]
[1769810587199,0.92524056,2702.0,2701.4,0.0011]
[1769810587982,0.774,2701.9,2701.4,0.0011]
[1769810588571,0.92530905,2701.8,2701.4,0.0011]
[1769810588800,14.51109392,2701.8,2701.4,0.0011]
[1769810589189,14.51109392,2701.8,2701.1,0.0011]
[1769810589383,14.51109392,2701.8,2700.2,13.68591911]
[1769810589603,14.51109392,2701.8,2700.0,0.92699618]
[1769810589604,13.58578487,2701.6,2700.0,0.0011]
[1769810589972,13.58578487,2701.6,2700.1,14.6117896]
[1769810590583,13.58578487,2701.6,2700.2,0.92585386]
[1769810590880,13.58578487,2701.4,2700.2,0.92585734]
[1769810591077,14.36078487,2701.3,2700.2,0.92585734]
[1769810591279,14.36078487,2701.3,2700.0,0.0011]
[1769810591587,14.36078487,2701.3,2700.1,0.92588801]
[1769810592000,14.36078487,2701.3,2700.0,0.92700505]
[1769810592201,14.36078487,2701.3,2700.0,0.0011]
[1769810592408,14.36078487,2701.3,2700.0,0.92702274]
[1769810592586,14.36078487,2701.3,2700.1,0.92589029]
[1769810592919,0.92551458,2701.2,2700.0,0.0011]
[1769810593222,13.58578487,2701.1,2700.0,0.0011]
[1769810593513,1.70049782,2701.3,2700.3,13.68701911]
[1769810593803,15.28628269,2701.3,2700.3,0.0011]
[1769810595913,0.01480796,2702.9,2700.3,0.0011]
[1769810595914,1.54285429,2701.8,2700.4,13.68591911]
[1769810596404,15.90363916,2701.8,2700.3,13.68701911]
[1769810596619,13.58578487,2701.7,2700.4,15.05462102]
[1769810596985,0.92537755,2701.6,2700.5,14.61167359]
[1769810597185,6.01914395,2701.8,2700.5,14.61167359]
[1769810597186,1.54285429,2701.8,2700.5,14.61167359]
[1769810598414,1.54285429,2701.8,2700.5,14.61277359]
[1769810600019,0.001,2702.0,2700.5,14.61277359]
[1769810600317,0.001,2702.0,2700.7,13.68591911]
[1769810601400,0.001,2702.0,2700.8,0.92565165]
[1769810601697,0.001,2702.0,2700.9,13.68591911]
[1769810604125,0.001,2702.0,2701.1,13.68591911]
[1769810606496,0.001,2702.0,2701.2,0.92551458]
[1769810606694,0.001,2702.0,2701.3,1.8313492]
[1769810607818,0.775,2702.7,2701.3,1.8313492]
[1769810607819,13.58578487,2703.0,2701.4,13.68591911]
[1769810608594,13.58578487,2703.0,2701.6,13.68591911]
[1769810608790,13.58578487,2703.3,2701.6,13.68591911]
[1769810609030,0.9247272,2703.5,2701.8,13.68591911]
[1769810609192,14.51051207,2703.5,2702.0,13.68591911]
[1769810610728,14.51051207,2703.5,2702.2,13.68591911]
[1769810610940,14.51051207,2703.5,2702.1,0.92520632]
[1769810612700,14.51051207,2703.5,2702.0,3.70082528]
[1769810613023,13.58578487,2703.4,2702.1,1.9086985]
[1769810613423,13.58578487,2703.4,2702.1,15.59461761]
[1769810614510,13.58578487,2703.4,2702.1,1.9086985]
[1769810614713,13.58578487,2703.4,2702.0,3.70082528]
[1769810614898,13.58578487,2703.2,2702.0,3.70082528]
[1769810615597,13.58578487,2703.2,2702.0,17.38674439]
[1769810617022,14.51063566,2703.2,2702.0,17.38674439]
[1769810618003,14.51063566,2703.2,2702.0,3.70082528]
[1769810618216,13.29852021,2703.1,2702.0,3.70082528]
[1769810618942,13.29852021,2702.9,2701.8,3.70119367]
[1769810619835,14.07352021,2702.9,2701.8,0.92530905]
[1769810621843,13.29852021,2702.7,2701.5,3.70163318]
[1769810623333,13.29852021,2702.7,2702.0,0.0011]
[1769810623822,14.22355313,2702.7,2702.0,0.0011]
[1769810628151,14.22355313,2702.7,2701.8,0.0011]
[1769810628364,14.22355313,2702.7,2701.2,0.92549428]
[1769810628571,14.22355313,2702.7,2701.1,0.0011]
[1769810629209,14.22355313,2702.7,2701.1,0.92664735]
[1769810629417,13.29852021,2702.6,2701.1,0.92664735]
[1769810629646,13.29852021,2702.6,2701.3,0.92545588]
[1769810629831,13.29852021,2702.4,2701.1,12.9065022]
[1769810631553,0.92506938,2702.5,2701.1,12.9065022]
[1769810632043,13.29852021,2702.5,2701.3,12.9054022]
[1769810632271,13.29852021,2702.5,2701.4,1.38309168]
[1769810632445,13.29852021,2702.5,2701.3,12.9054022]
[1769810634017,0.92510361,2702.4,2701.4,0.92544606]
[1769810634746,0.775,2702.5,2701.4,13.83084826]
[1769810635644,0.775,2702.5,2701.6,12.9054022]
[1769810635846,0.001,2702.3,2701.7,1.29065022]
[1769810636521,0.001,2702.3,2701.8,0.92530905]
[1769810637232,13.29952021,2702.3,2701.5,0.0011]
[1769810638932,14.22369229,2702.2,2701.5,0.0011]
[1769810641052,14.22369229,2702.2,2701.3,0.0011]
[1769810641233,14.22369229,2702.2,2701.1,0.0011]
[1769810642257,14.22369229,2702.2,2701.1,0.92664786]
[1769810642557,14.22369229,2702.2,2701.1,0.0011]
[1769810647862,14.22369229,2702.2,2701.3,0.0011]
[1769810648062,13.46755386,2702.1,2701.3,0.0011]
[1769810648233,13.46755386,2701.7,2700.7,0.0011]
[1769810648433,13.46755386,2701.5,2700.3,0.0011]
[1769810648763,13.46755386,2701.5,2701.0,0.0011]
[1769810648931,13.46755386,2701.5,2700.3,0.0011]
[1769810649532,13.46755386,2701.3,2700.3,0.0011]
[1769810650960,0.92544606,2701.4,2700.4,12.90851715]
[1769810651163,14.39299992,2701.4,2700.4,12.90851715]
[1769810651961,14.39299992,2701.4,2700.4,13.83428425]
[1769810653262,14.39299992,2701.4,2700.4,0.9257671]
[1769810653566,13.46755386,2701.8,2700.6,12.90851715]
[1769810653741,13.46755386,2701.9,2700.7,1.29096171]
[1769810653947,13.46755386,2701.7,2700.7,2.21661575]
[1769810654676,13.46755386,2701.7,2700.5,0.0011]
[1769810654835,13.46755386,2701.7,2700.5,0.92683732]
[1769810655366,13.46755386,2701.7,2700.5,0.0011]
[1769810656434,13.46755386,2701.5,2700.5,0.0011]
[1769810656633,13.46755386,2701.3,2700.5,0.0011]
[1769810660479,0.92551458,2701.2,2700.7,0.0011]
[1769810660774,14.39306844,2701.2,2700.7,0.0011]
[1769810663391,0.92551458,2701.2,2700.7,0.0011]
[1769810665266,0.92548032,2701.3,2700.7,0.0011]
[1769810665468,13.46755386,2701.2,2700.7,0.0011]
[1769810665682,0.92548032,2701.3,2700.7,0.0011]
[1769810665898,14.39303418,2701.3,2700.7,0.0011]
[1769810671405,14.39303418,2701.3,2700.5,0.0011]
[1769810672320,14.39303418,2701.3,2699.1,3.70483347]
[1769810672321,13.46755386,2700.7,2699.8,0.0011]
[1769810672621,5.49120928,2700.5,2699.8,0.0011]
[1769810672818,0.775,2700.4,2699.8,0.0011]
[1769810673285,1.70081521,2700.4,2699.8,0.0011]
[1769810676205,15.16836907,2700.4,2699.8,0.0011]
[1769810677017,1.70081521,2700.4,2699.8,0.0011]
[1769810677218,0.775,2700.4,2699.8,13.29723815]
[1769810677592,16.8900565,2700.8,2699.8,13.29723815]
[1769810677593,0.775,2700.8,2699.8,13.29723815]
[1769810677793,0.92568593,2700.7,2699.9,14.42928277]
[1769810679247,0.775,2700.8,2699.9,14.42928277]
[1769810679521,1.70064297,2700.9,2700.1,13.50332255]
[1769810680022,1.70064297,2700.9,2700.2,14.42917989]
[1769810680222,0.92564297,2700.9,2700.2,13.50332255]
[1769810680410,0.92564297,2700.9,2700.1,0.92587295]
[1769810680614,14.16964859,2700.9,2700.1,0.92587295]
[1769810681109,5.49060646,2701.0,2700.1,14.4291955]
[1769810681312,0.775,2701.0,2700.1,14.4291955]
[1769810681520,0.001,2701.1,2700.1,14.4291955]
[1769810682707,3.70169848,2701.5,2700.2,13.50332255]
[1769810682916,3.70169848,2701.5,2700.4,13.50332255]
[1769810683212,13.24400562,2701.4,2700.2,13.50332255]
[1769810683894,14.16948594,2701.3,2700.3,0.92582305]
[1769810685249,14.16948594,2701.3,2699.8,0.0011]
[1769810685402,14.16948594,2701.3,2700.1,0.92588551]
[1769810685611,13.24500562,2700.9,2700.0,0.92589807]
[1769810685811,0.92568593,2700.7,2699.9,3.70383635]
[1769810686549,0.92568593,2700.7,2699.8,14.43038277]
[1769810687050,14.16969155,2700.7,2699.8,0.0011]
[1769810687350,14.16969155,2700.7,2699.7,0.92602713]
[1769810687512,14.16969155,2700.7,2699.7,0.92601831]
[1769810687721,13.24400562,2700.6,2699.7,0.92601831]
[1769810687918,14.1697601,2700.5,2699.6,0.0011]
[1769810689217,17.95971229,2700.7,2699.6,13.50442255]
[1769810689516,0.775,2700.8,2699.6,13.50442255]
[1769810689719,1.70065848,2700.8,2699.6,13.50442255]
[1769810689944,1.70065848,2700.8,2699.8,13.50332255]
[1769810690918,1.70065848,2700.8,2699.9,14.42928277]
[1769810691520,1.70065176,2700.8,2699.9,13.50332255]
[1769810693041,0.775,2700.8,2700.0,14.42924847]
[1769810693254,0.001,2700.9,2700.0,14.42924847]
[1769810693455,0.001,2700.9,2700.2,13.50332255]
[1769810694058,0.9255377,2701.2,2700.1,1.81330081]
[1769810694203,0.776,2701.3,2700.2,13.50332255]
[1769810694409,1.70150631,2701.3,2700.2,13.50332255]
[1769810694710,1.70148272,2701.3,2700.2,13.50332255]
[1769810695909,1.70148272,2701.3,2700.4,13.50332255]
[1769810695910,0.776,2701.3,2700.4,13.50332255]
[1769810696822,14.11728723,2701.7,2700.4,13.50332255]
[1769810696823,0.87328161,2701.7,2700.4,13.50332255]
[1769810697010,1.79863299,2701.7,2700.6,13.50332255]
[1769810697530,15.04263861,2701.7,2700.6,13.50332255]
[1769810697931,15.04263861,2701.7,2700.7,0.92568593]
[1769810698337,0.87328161,2701.7,2700.7,14.42900848]
[1769810701231,0.776,2701.9,2700.8,13.50332255]
[1769810701543,0.776,2701.9,2701.0,13.50332255]
[1769810701944,0.776,2701.9,2701.1,0.92554885]
[1769810702148,0.776,2701.9,2701.2,13.50332255]
[1769810702445,0.001,2702.3,2701.3,13.50332255]
[1769810702646,0.001,2702.3,2701.3,14.27832255]
[1769810702814,0.001,2702.3,2701.5,13.50332255]
[1769810704047,0.001,2702.3,2701.6,14.4287001]
[1769810704350,0.001,2702.3,2701.5,0.92539114]
[1769810704551,13.24500562,2702.3,2701.5,0.92539114]
[1769810706150,14.17015886,2702.3,2701.4,3.70177397]
[1769810706350,13.24400562,2702.2,2701.4,3.70177397]
[1769810706551,0.001,2702.3,2701.4,3.70177397]
[1769810706734,0.001,2702.3,2701.5,13.11114444]
[1769810708120,0.001,2702.3,2701.6,0.92537755]
[1769810708321,0.001,2702.3,2701.5,0.92538637]
[1769810709461,0.001,2702.1,2701.5,0.92538637]
[1769810711774,0.001,2702.1,2701.5,14.03653081]
[1769810711924,0.001,2702.1,2701.5,0.92538637]
[1769810712256,0.001,2702.1,2701.5,14.03653081]
[1769810714355,0.001,2702.1,2701.5,0.92538637]
[1769810714746,0.001,2702.1,2701.5,1.38810272]
[1769810716244,0.001,2702.1,2701.5,14.49924716]
[1769810716630,0.001,2702.1,2701.5,1.38810272]
[1769810717730,0.001,2702.1,2701.5,14.49924716]
[1769810718554,0.001,2702.3,2701.5,14.49924716]
[1769810718866,0.001,2702.3,2701.7,13.11114444]
[1769810719544,0.001,2702.3,2701.7,13.88614444]
[1769810720765,0.001,2702.3,2701.9,13.11114444]
[1769810721071,0.001,2703.0,2701.8,0.92530905]
[1769810721072,0.001,2703.0,2702.0,13.11114444]
[1769810721360,0.001,2703.0,2701.8,0.92530905]
[1769810721361,0.001,2703.0,2702.1,14.42225888]
[1769810722869,0.92589826,2703.0,2702.2,0.92517208]
[1769810723078,14.69203964,2703.0,2702.2,0.92517208]
[1769810726852,13.76714138,2703.0,2702.2,0.92517208]
[1769810727364,14.69204838,2703.0,2702.2,0.92517208]
[1769810733805,0.001,2702.8,2702.2,0.92517208]
[1769810736770,0.001,2702.8,2702.2,14.77408577]
[1769810739876,0.001,2702.8,2702.2,0.92517208]
[1769810742174,0.001,2702.8,2702.2,14.84913968]
[1769810745050,0.001,2702.8,2702.2,15.62413968]
[1769810745252,0.001,2702.8,2702.3,15.98756705]
[1769810745850,4.06943848,2703.4,2702.5,13.9239676]
[1769810746157,0.27943848,2703.4,2702.5,13.9239676]
[1769810746373,0.27943848,2703.4,2702.7,13.9239676]
[1769810746681,12.68061324,2704.0,2703.0,13.9239676]
[1769810746973,12.68061324,2704.0,2703.2,0.92482983]
[1769810747635,12.68061324,2704.0,2703.2,14.84879743]
[1769810747859,12.68061324,2703.8,2702.7,0.924988]
[1769810748248,12.68061324,2703.8,2702.6,0.92501026]
[1769810748752,12.68061324,2703.8,2702.7,0.92499658]
[1769810748970,12.68061324,2703.6,2702.4,0.92510361]
[1769810749365,13.45561324,2703.6,2702.4,0.92510361]
[1769810751849,12.68061324,2703.4,2702.3,3.70041444]
[1769810753767,0.92479562,2703.3,2702.3,3.70041444]
[1769810753974,12.68061324,2703.2,2702.3,3.70041444]
[1769810754274,12.68061324,2703.2,2702.3,5.76397787]
[1769810757585,13.60547728,2703.1,2702.5,0.0011]
[1769810757778,12.68061324,2703.1,2702.5,0.0011]
[1769810759493,12.68061324,2703.1,2701.9,0.0011]
[1769810759494,12.67981324,2703.0,2701.9,0.0011]
[1769810759678,12.68061324,2702.7,2701.9,0.0011]
[1769810761888,12.68061324,2702.5,2701.9,0.0011]
[1769810769534,13.68515223,2702.3,2701.6,0.0011]
[1769810769831,13.68515223,2702.1,2700.9,13.66565486]
[1769810769997,1.70010361,2702.4,2700.8,0.0011]
[1769810769998,13.68515223,2701.9,2700.8,0.0011]
[1769810770188,13.68515223,2701.7,2700.8,0.0011]
[1769810771330,13.68515223,2701.7,2700.6,0.0011]
[1769810771331,13.68515223,2701.6,2700.6,0.0011]
[1769810771533,13.68515223,2701.4,2700.6,0.0011]
[1769810771701,13.68515223,2701.3,2700.6,0.0011]
[1769810771909,13.68515223,2701.1,2700.6,0.0011]
[1769810773230,13.68515223,2701.1,2700.4,0.0011]
[1769810774499,13.68515223,2700.9,2700.4,0.0011]
[1769810774931,3.70233246,2701.1,2700.4,0.0011]
[1769810774932,0.92555771,2701.1,2700.4,13.66695486]
[1769810775224,14.61070994,2701.1,2700.4,1.36779549]
[1769810775407,14.61070994,2701.1,2700.4,0.0011]
[1769810776739,14.61070994,2701.1,2699.6,14.59299724]
[1769810776964,13.68515223,2700.9,2699.6,14.59299724]
[1769810777413,13.68515223,2700.9,2699.7,0.92602684]
[1769810778246,13.68515223,2700.9,2699.7,14.5918817]
[1769810779217,13.68515223,2700.6,2699.7,14.5918817]
[1769810779440,14.46015223,2700.6,2699.7,14.5918817]
[1769810779638,14.46015223,2700.6,2699.7,13.66585486]
[1769810780342,14.46015223,2700.6,2699.7,14.59188303]
[1769810780509,14.46015223,2700.6,2699.7,13.66585486]
[1769810780711,13.68515223,2700.5,2699.6,0.0011]
[1769810780913,13.68515223,2700.5,2699.6,0.92715498]
[1769810781112,13.68515223,2700.5,2699.6,14.59300984]
[1769810781748,3.79,2700.6,2699.8,5.49376955]
[1769810781913,3.79,2700.6,2699.9,14.21523181]
[1769810782237,4.71572445,2700.6,2699.9,14.21523181]
[1769810782430,3.79,2700.6,2699.9,14.21633181]
[1769810784050,3.79,2700.6,2700.0,0.92592592]
[1769810784247,3.79,2700.6,2700.0,14.59178078]
[1769810784443,3.79,2700.6,2700.0,16.47639626]
[1769810785253,0.92569834,2700.7,2700.0,16.47639626]
[1769810787224,3.70249477,2700.9,2700.0,16.47639626]
[1769810789554,0.92561738,2700.9,2700.0,16.47639626]
[1769810790137,14.61076961,2700.9,2700.0,1.88461548]
[1769810790338,14.61076961,2700.9,2699.9,0.92705715]
[1769810790339,13.68515223,2700.7,2699.9,0.92705715]
[1769810790525,13.68515223,2700.7,2699.9,0.0011]
[1769810790856,13.68515223,2700.7,2699.9,0.92703048]
[1769810791356,13.68515223,2700.7,2699.9,14.59288534]
[1769810791848,0.92572021,2700.6,2699.9,14.59288534]
[1769810792984,13.68515223,2700.9,2699.9,13.66695486]
[1769810794262,0.001,2700.5,2699.9,13.66695486]
[1769810795469,13.68615223,2700.5,2699.9,0.0011]
[1769810796465,14.46115223,2700.5,2699.9,0.0011]
[1769810797870,12.93686476,2700.3,2699.9,0.0011]
[1769810798167,12.93686476,2700.1,2699.6,0.0011]
[1769810799725,0.92592592,2700.0,2699.6,0.0011]
[1769810799970,0.92592592,2700.0,2699.2,0.0011]
[1769810799971,12.93686476,2699.8,2699.2,0.0011]
[1769810800136,12.93686476,2699.6,2698.6,12.62235611]
[1769810800746,12.93686476,2699.6,2698.6,0.0011]
[1769810801941,12.93686476,2699.4,2697.9,0.92664514]
[1769810802227,0.92609742,2699.5,2697.8,12.62125611]
[1769810802228,12.93686476,2699.2,2697.8,12.62125611]
[1769810802455,12.93686476,2699.2,2697.8,13.54790387]
[1769810802659,12.93686476,2699.0,2697.6,0.92672324]
[1769810803159,12.93686476,2699.0,2697.7,0.92671208]
[1769810803358,12.93686476,2699.0,2697.5,12.62125611]
[1769810803660,12.93686476,2699.0,2697.4,3.70715623]
[1769810803661,12.93686476,2699.0,2697.8,0.92665566]
[1769810804033,12.93686476,2698.8,2697.7,0.92671535]
[1769810804663,12.93686476,2698.8,2697.4,13.54805199]
[1769810805285,12.93686476,2698.3,2696.8,12.62125611]
[1769810805433,12.93686476,2698.1,2697.0,0.9269557]
[1769810805625,12.93686476,2697.9,2696.5,12.62125611]
[1769810805840,0.776,2698.2,2696.5,0.92711331]
[1769810805841,12.93686476,2697.7,2696.5,0.92711331]
[1769810806051,12.93686476,2697.7,2696.4,3.70861811]
[1769810806052,12.93686476,2697.5,2696.2,16.33004222]
[1769810806376,12.93686476,2698.1,2696.9,12.62125611]
[1769810806579,0.776,2698.0,2696.9,12.62125611]
[1769810806736,0.92650928,2698.3,2697.0,14.43360096]
[1769810806940,1.70250928,2698.3,2697.0,14.43360096]
[1769810808138,1.70250928,2698.3,2697.2,12.62125611]
[1769810808774,0.92650928,2698.3,2697.2,12.62125611]
[1769810809493,1.66072686,2698.4,2697.2,12.62125611]
[1769810809780,14.59759162,2698.4,2697.1,0.9269215]
[1769810810071,14.59759162,2698.4,2697.0,13.5482032]
[1769810811449,14.59759162,2698.4,2696.9,0.92698224]
[1769810811771,14.59759162,2698.4,2697.0,0.92695073]
[1769810812077,14.59759162,2698.4,2696.8,0.0011]
[1769810812290,12.93686476,2698.2,2696.8,0.0011]
[1769810812452,12.93686476,2698.2,2696.4,12.62125611]
[1769810812453,12.93686476,2697.7,2695.6,3.7097221]
[1769810812656,12.93686476,2697.3,2696.2,0.92722976]
[1769810812847,12.93686476,2697.3,2696.4,0.9271387]
[1769810813177,0.776,2697.3,2696.6,0.92709072]
[1769810813387,0.776,2697.3,2696.3,13.54843501]
[1769810813689,0.776,2697.3,2696.2,0.92720814]
[1769810813860,0.776,2697.3,2696.2,3.70891192]
[1769810814059,1.70287616,2697.3,2696.4,0.92716214]
[1769810814390,13.86361446,2697.6,2696.3,1.29806515]
[1769810814563,13.86361446,2697.6,2695.7,0.26311151]
[1769810814564,13.86361446,2697.6,2696.2,0.9272071]
[1769810815398,13.86361446,2697.6,2696.2,0.92722663]
[1769810815723,12.93686476,2697.0,2695.7,0.26311151]
[1769810815997,0.52762948,2697.5,2695.3,0.92751831]
[1769810815998,12.93686476,2696.8,2695.8,0.92734476]
[1769810816180,0.92709337,2696.6,2695.5,0.92747171]
[1769810816354,0.776,2696.5,2695.5,0.92747171]
[1769810818195,0.776,2696.5,2695.2,0.92757494]
[1769810818196,0.92716214,2696.4,2695.2,0.92757494]
[1769810818395,0.92716214,2696.4,2695.7,0.0011]
[1769810819298,12.93686476,2697.0,2695.7,0.0011]
[1769810819460,0.92699024,2696.9,2695.8,1.26223561]
[1769810819787,12.93686476,2697.0,2695.8,13.88349172]
[1769810819991,0.776,2697.3,2695.8,13.88349172]
[1769810820189,13.86364881,2697.5,2696.0,12.62125611]
[1769810820694,3.70665896,2697.9,2696.0,12.62125611]
[1769810820695,0.92671535,2697.7,2696.0,12.62125611]
[1769810820900,0.92671535,2697.7,2696.2,12.62125611]
[1769810822398,3.7067245,2697.8,2696.4,12.62125611]
[1769810823588,16.64358926,2697.8,2696.4,12.62125611]
[1769810825395,16.64358926,2697.8,2696.5,0.92712775]
[1769810826093,3.7067245,2697.8,2696.5,0.92712775]
[1769810826401,13.47780531,2697.7,2696.6,1.72568949]
[1769810827476,13.59923244,2697.6,2696.7,0.92705899]
[1769810830701,13.60023244,2697.6,2696.7,0.92705899]
[1769810831899,13.60023244,2697.6,2696.6,0.0011]
[1769810832202,13.60023244,2697.6,2696.6,0.92819071]
[1769810832406,12.67248274,2697.4,2696.6,0.0011]
[1769810832595,12.67248274,2697.4,2696.6,0.92819263]
[1769810832994,12.67248274,2697.4,2696.6,0.0011]
[1769810834508,0.92685277,2697.3,2696.6,0.0011]
[1769810834707,0.776,2697.2,2696.6,0.0011]
[1769810836112,1.31694055,2697.2,2696.6,0.0011]
[1769810836406,0.776,2697.2,2696.6,0.0011]
[1769810841417,1.70290282,2697.2,2696.6,0.0011]
[1769810841613,0.776,2697.2,2696.6,0.0011]
[1769810841803,1.70288773,2697.2,2696.6,0.0011]
[1769810842513,0.776,2697.2,2696.6,0.0011]
[1769810845107,3.70804683,2697.6,2696.6,13.01565308]
[1769810845108,0.001,2697.6,2696.6,13.01565308]
[1769810846312,0.001,2697.6,2696.7,13.94161207]
[1769810847085,12.67248274,2697.5,2696.7,0.92705899]
[1769810847290,12.67248274,2697.5,2696.6,0.92818939]
[1769810849605,13.59930115,2697.4,2696.6,0.0011]
[1769810850721,12.67248274,2697.4,2696.6,0.0011]
[1769810850937,0.92776865,2697.6,2696.6,13.01565308]
[1769810851134,0.92776865,2697.6,2696.8,13.01455308]
[1769810851439,0.001,2697.6,2696.8,13.01455308]
[1769810851635,0.001,2697.6,2696.9,0.92699024]
[1769810852341,0.001,2697.6,2696.9,13.94154332]
[1769810855837,0.001,2697.4,2696.9,13.94154332]
[1769810856019,0.001,2697.4,2696.9,16.20745064]
[1769810860946,0.88790074,2698.2,2697.0,13.79081049]
[1769810861513,14.83161023,2698.2,2697.0,13.79081049]
[1769810863116,14.83161023,2698.2,2697.1,0.9269215]
[1769810863319,13.01716083,2698.1,2697.2,1.7649418]
[1769810864159,1e-08,2698.2,2697.3,13.01481049]
[1769810865222,1e-08,2698.2,2697.5,13.01481049]
[1769810865418,1e-08,2698.2,2697.4,0.92681841]
[1769810865656,13.01716084,2698.2,2697.5,1.84249026]
[1769810865860,1e-08,2698.2,2697.4,13.9416289]
[1769810867073,0.001,2698.0,2697.4,13.9416289]
[1769810867436,1e-08,2698.2,2697.4,13.9416289]
[1769810873163,4.48073253,2699.3,2697.5,13.01481049]
[1769810873164,0.92620035,2699.2,2697.5,13.01481049]
[1769810873383,13.55785873,2699.1,2697.7,13.01481049]
[1769810873669,13.55785873,2699.1,2697.9,13.01481049]
[1769810873872,13.55785873,2699.1,2698.0,13.94142279]
[1769810874862,0.776,2699.3,2698.0,13.94142279]
[1769810875093,13.01716083,2699.7,2698.0,13.94142279]
[1769810875306,13.29969002,2699.9,2698.0,13.94142279]
[1769810875578,0.28252919,2699.9,2698.2,13.01481049]
[1769810875883,0.28252919,2699.9,2698.4,13.01481049]
[1769810876047,0.28252919,2699.9,2698.6,13.01481049]
[1769810876249,13.01636083,2700.4,2698.8,13.01481049]
[1769810876468,13.01636083,2700.4,2699.0,13.01481049]
[1769810877279,13.94215371,2700.4,2699.0,13.01481049]
[1769810877678,13.94215371,2700.4,2698.5,15.32033215]
[1769810877881,13.01716083,2700.3,2698.7,13.01481049]
[1769810878067,13.01716083,2700.1,2698.8,0.92633763]
[1769810880269,13.01716083,2699.9,2698.7,3.70535052]
[1769810881290,0.92592592,2700.0,2698.8,13.01481049]
[1769810882368,0.001,2700.2,2699.0,13.01481049]
[1769810882554,0.001,2700.2,2699.2,13.01481049]
[1769810882753,0.001,2700.5,2699.2,13.01481049]
[1769810882954,13.94266355,2701.3,2699.3,13.01481049]
[1769810884785,13.94266355,2701.3,2699.4,0.92613173]
[1769810884984,13.94266355,2701.3,2699.5,13.47787636]
[1769810885491,13.01716083,2701.3,2699.5,13.47787636]
[1769810885672,13.94264145,2701.3,2699.5,13.47787636]
[1769810886774,13.94264145,2701.3,2699.7,13.13815087]
[1769810888418,13.01716083,2701.3,2699.7,13.13815087]
[1769810888718,13.01716083,2701.3,2699.9,13.13815087]
[1769810889025,13.01716083,2701.3,2700.1,13.13815087]
[1769810889798,12.95869363,2701.6,2700.1,13.13815087]
[1769810890310,13.88407269,2701.6,2700.0,0.92592592]
[1769810890813,13.88407269,2701.6,2699.6,0.92606312]
[1769810890814,14.41217752,2701.6,2699.6,0.92606312]
[1769810890987,12.95869363,2701.0,2699.6,2.74934246]
[1769810891177,12.95869363,2701.0,2699.6,0.92606312]
[1769810893213,12.95869363,2700.8,2699.6,0.92606312]
[1769810893517,12.95869363,2700.8,2699.6,14.06421399]
[1769810893810,0.92561738,2700.9,2699.6,14.06421399]
[1769810894183,13.88526317,2701.1,2699.6,14.06421399]
[1769810894382,13.88526317,2701.1,2699.8,13.13815087]
[1769810895703,13.88526317,2701.1,2700.0,13.13815087]
[1769810897286,12.95969363,2701.1,2700.0,13.13815087]
[1769810897484,0.001,2701.1,2700.0,13.13815087]
[1769810897730,0.001,2701.1,2700.1,14.0640425]
[1769810897931,0.001,2701.1,2700.2,14.91491177]
[1769810899728,0.001,2701.1,2700.3,14.06397392]
[1769810901014,0.001,2701.1,2700.3,14.83997392]
[1769810901330,12.95969363,2701.1,2700.2,2.70261394]
[1769810901490,12.95969363,2701.1,2700.2,0.92585304]
[1769810902302,12.95869363,2700.9,2699.8,3.70396254]
[1769810903091,0.001,2701.1,2699.9,13.13815087]
[1769810903408,13.88524511,2701.1,2699.9,13.13815087]
[1769810903614,13.88524511,2701.1,2700.0,1.68421134]
[1769810905317,13.73524511,2701.1,2700.1,0.92589163]
[1769810905892,12.80969363,2701.1,2700.1,0.92589163]
[1769810906306,0.92558311,2701.0,2700.1,0.92589163]
[1769810906608,13.88427674,2701.0,2700.1,0.92589163]
[1769810906920,13.88427674,2701.0,2700.1,2.87107367]
[1769810907092,12.95869363,2701.0,2700.1,2.87107367]
[1769810907707,12.95869363,2701.3,2700.2,13.13815087]
[1769810908126,12.95869363,2701.3,2700.1,2.87107367]
[1769810910031,13.88420821,2701.2,2700.1,2.87107367]
[1769810910200,13.88420821,2701.2,2700.2,0.65746402]
[1769810911635,12.95869363,2701.5,2700.2,13.79561489]
[1769810912142,0.92534674,2701.7,2700.4,13.13815087]
[1769810912704,0.92534674,2701.7,2700.4,13.91315087]
[1769810912935,13.88400333,2701.8,2700.4,13.91315087]
[1769810913116,13.88400333,2701.8,2700.6,13.13815087]
[1769810914436,13.88400333,2701.8,2700.7,0.92568593]
[1769810914734,0.001,2701.0,2700.7,0.92568593]